bitfinex/quotes_ETHUSD_20250322
["timestamp","ask_amount","ask_price","bid_price","bid_amount"]
[1742658316764,5.40163694,1986.5,1986.4,31.269]
[1742658316939,9.27425862,1986.5,1986.4,26.616]
[1742658317145,9.27425862,1986.5,1986.4,31.269]
[1742658318264,9.21133031,1986.5,1986.4,31.269]
[1742658318568,9.27426177,1986.5,1986.4,31.269]
[1742658319044,9.21133031,1986.5,1986.4,31.269]
[1742658319674,9.27426176,1986.5,1986.4,31.269]
[1742658320774,9.21133031,1986.5,1986.4,31.269]
[1742658320975,9.27426175,1986.5,1986.4,31.269]
[1742658321163,9.21133031,1986.5,1986.4,31.269]
[1742658321479,9.27426174,1986.5,1986.4,31.269]
[1742658321647,9.21133031,1986.5,1986.4,31.269]
[1742658321847,9.27426174,1986.5,1986.4,31.269]
[1742658322071,9.21133031,1986.5,1986.4,31.269]
[1742658324077,9.27426173,1986.5,1986.4,31.269]
[1742658324948,9.21133031,1986.5,1986.4,31.269]
[1742658325144,9.21133031,1986.5,1986.4,4.653]
[1742658325475,5.33870863,1986.5,1986.4,4.653]
[1742658325680,7.9735282,1986.5,1986.4,4.653]
[1742658327884,7.9105968,1986.5,1986.4,4.653]
[1742658328682,7.97352903,1986.5,1986.4,4.653]
[1742658328882,5.03448,1986.3,1986.2,26.615]
[1742658329079,5.09741451,1986.3,1986.2,31.268]
[1742658329288,5.29068697,1986.3,1986.2,31.268]
[1742658332989,5.29068697,1986.3,1986.2,31.768]
[1742658335774,5.35361993,1986.3,1986.2,31.268]
[1742658336190,5.29068697,1986.3,1986.2,31.268]
[1742658336390,5.35362017,1986.3,1986.2,31.268]
[1742658336590,5.29068697,1986.3,1986.2,31.268]
[1742658348201,5.24068697,1986.3,1986.2,31.268]
[1742658350105,0.25620697,1986.3,1986.2,33.49102587]
[1742658350313,0.25620697,1986.3,1986.2,45.91461817]
[1742658350477,5.03382,1986.6,1986.3,0.5]
[1742658350804,0.23444279,1986.5,1986.4,3.12188817]
[1742658350986,0.23444279,1986.5,1986.4,3.62188817]
[1742658351306,5.03357,1986.7,1986.4,4.99095099]
[1742658351502,5.03357,1986.7,1986.5,2.57188817]
[1742658351709,0.23482992,1986.6,1986.5,2.57188817]
[1742658351877,0.23482992,1986.6,1986.5,7.22488817]
[1742658352077,5.03357,1986.7,1986.5,7.22488817]
[1742658352274,0.23492145,1986.6,1986.5,8.07885122]
[1742658352600,5.03357,1986.7,1986.5,5.50696305]
[1742658352805,0.23492145,1986.6,1986.5,5.50696305]
[1742658353206,5.03372,1986.6,1986.5,5.50696305]
[1742658353411,5.26864145,1986.6,1986.5,4.653]
[1742658354304,5.03415,1986.5,1986.2,33.105]
[1742658354505,5.03415,1986.5,1986.3,4.653]
[1742658354506,2.57188817,1986.5,1986.3,4.653]
[1742658354717,5.26869349,1986.4,1986.3,4.653]
[1742658355083,5.33162353,1986.4,1986.3,4.653]
[1742658355304,5.26869349,1986.4,1986.3,4.653]
[1742658355810,5.33162558,1986.4,1986.3,4.653]
[1742658357315,5.26869349,1986.4,1986.3,4.653]
[1742658358187,5.26869349,1986.4,1986.3,5.153]
[1742658359386,0.23446349,1986.4,1986.3,5.153]
[1742658359603,0.23446349,1986.4,1986.3,7.72488817]
[1742658360132,5.03407,1986.5,1986.3,7.72488817]
[1742658360747,5.03407,1986.5,1986.3,5.153]
[1742658360895,0.21408255,1986.4,1986.3,5.153]
[1742658363733,5.24831255,1986.4,1986.3,4.653]
[1742658367454,0.21408255,1986.4,1986.3,4.653]
[1742658367841,0.21408255,1986.4,1986.3,7.22488817]
[1742658368878,0.21408255,1986.4,1986.3,33.83888817]
[1742658369175,0.21408255,1986.4,1986.3,34.88888817]
[1742658369382,5.03367,1986.7,1986.4,0.55]
[1742658369554,5.03366,1986.7,1986.4,3.12188817]
[1742658369754,5.03366,1986.7,1986.5,0.31218882]
[1742658370351,5.03372,1986.6,1986.5,0.31218882]
[1742658370568,5.03372,1986.6,1986.4,3.12188817]
[1742658370872,5.03372,1986.6,1986.4,0.55]
[1742658371048,5.03397,1986.5,1986.4,0.55]
[1742658371247,5.03372,1986.6,1986.4,0.55]
[1742658371449,5.03372,1986.6,1986.4,3.12188817]
[1742658371649,5.03347,1986.7,1986.4,3.12188817]
[1742658373013,5.03323,1986.8,1986.5,2.57188817]
[1742658373181,5.03328,1986.8,1986.7,2.57188817]
[1742658373370,5.03328,1986.8,1986.7,4.652]
[1742658373705,5.03328,1986.8,1986.7,31.265]
[1742658377194,5.03261,1987.1,1986.7,34.33688817]
[1742658377504,5.03259,1987.1,1986.9,2.57188817]
[1742658378303,5.03259,1987.1,1987.0,2.57188817]
[1742658378467,5.03259,1987.1,1986.9,2.57188817]
[1742658378670,5.23121227,1987.1,1987.0,0.25718882]
[1742658379303,10.26387227,1987.1,1986.8,4.83563526]
[1742658379473,5.23121227,1987.1,1986.8,4.83563526]
[1742658380770,5.23121227,1987.1,1986.8,10.82563526]
[1742658387801,5.23121227,1987.1,1986.8,15.85884526]
[1742658388402,0.19862227,1987.1,1986.9,4.28563526]
[1742658388704,0.19862227,1987.1,1987.0,4.71419879]
[1742658389046,0.19936613,1987.1,1987.0,0.42856353]
[1742658389227,5.03196,1987.3,1987.0,0.42856353]
[1742658389424,5.0322,1987.2,1987.1,4.651]
[1742658389805,5.0322,1987.2,1987.1,31.257]
[1742658393714,5.23156609,1987.2,1987.1,31.257]
[1742658397358,0.19936609,1987.2,1987.1,31.257]
[1742658398853,5.23156609,1987.2,1987.1,31.257]
[1742658400543,0.19936609,1987.2,1987.1,31.257]
[1742658401722,0.19936609,1987.2,1987.1,33.82805335]
[1742658401923,0.19936609,1987.2,1987.1,31.257]
[1742658402124,5.23156609,1987.2,1987.1,31.257]
[1742658404261,0.19936609,1987.2,1987.1,37.247]
[1742658409872,5.23156609,1987.2,1987.1,37.247]
[1742658414160,0.19936609,1987.2,1987.1,37.247]
[1742658415759,5.23156609,1987.2,1987.1,37.247]
[1742658416137,0.19936609,1987.2,1987.1,37.247]
[1742658416539,5.23156609,1987.2,1987.1,37.247]
[1742658417270,0.19936609,1987.2,1987.1,37.247]
[1742658421961,0.19936609,1987.2,1987.1,31.257]
[1742658422980,0.19936609,1987.2,1987.1,39.41050335]
[1742658423179,0.19936609,1987.2,1987.1,39.91050335]
[1742658423382,5.0312,1987.6,1987.3,0.5]
[1742658423588,5.0312,1987.6,1987.4,2.57105335]
[1742658423882,5.03095,1987.7,1987.5,4.65]
[1742658424050,5.03119,1987.6,1987.5,4.65]
[1742658425288,5.03095,1987.7,1987.5,7.22105335]
[1742658425496,5.03095,1987.7,1987.5,7.94315869]
[1742658425702,5.03095,1987.7,1987.5,5.37210534]
[1742658426700,5.03095,1987.7,1987.6,26.601]
[1742658428061,5.09383954,1987.7,1987.6,26.601]
[1742658429083,11.49529289,1987.7,1987.6,26.601]
[1742658429410,13.34210597,1987.7,1987.6,26.601]
[1742658431289,8.03144,1987.5,1987.4,4.65]
[1742658431490,0.7856,1987.3,1987.2,26.6]
[1742658431717,8.45150732,1987.3,1987.2,31.25]
[1742658434126,5.81755,1987.3,1987.2,31.25]
[1742658434302,5.03195,1987.3,1987.2,31.25]
[1742658434502,5.03169,1987.4,1987.2,31.25]
[1742658434703,10.06357,1987.4,1987.2,31.25]
[1742658435512,5.03195,1987.3,1987.2,31.25]
[1742658438128,5.03169,1987.4,1987.2,31.25]
[1742658438593,0.20237226,1987.3,1987.2,31.25]
[1742658438929,5.03169,1987.4,1987.2,31.25]
[1742658439225,0.20237226,1987.3,1987.2,31.25]
[1742658439624,5.03169,1987.4,1987.2,31.25]
[1742658439787,0.20237226,1987.3,1987.2,31.25]
[1742658440215,10.06359,1987.4,1987.2,31.25]
[1742658440402,0.20237226,1987.3,1987.2,31.25]
[1742658440812,10.06359,1987.4,1987.2,31.25]
[1742658441029,0.20237226,1987.3,1987.2,31.25]
[1742658441396,10.06359,1987.4,1987.2,31.25]
[1742658441595,0.20237226,1987.3,1987.2,31.25]
[1742658442010,5.03169,1987.4,1987.2,31.25]
[1742658442308,0.20237226,1987.3,1987.2,31.25]
[1742658442495,5.03169,1987.4,1987.2,31.25]
[1742658442832,0.20237226,1987.3,1987.2,31.25]
[1742658443203,10.06357,1987.4,1987.2,31.25]
[1742658443404,0.2025746,1987.3,1987.2,31.25]
[1742658443927,5.03169,1987.4,1987.2,31.25]
[1742658444134,0.2025746,1987.3,1987.2,31.25]
[1742658444332,5.03169,1987.4,1987.2,31.25]
[1742658444638,0.2025746,1987.3,1987.2,31.25]
[1742658445307,5.03169,1987.4,1987.2,31.25]
[1742658445509,0.2025746,1987.3,1987.2,31.25]
[1742658445720,5.03169,1987.4,1987.2,31.25]
[1742658446055,0.2025746,1987.3,1987.2,31.25]
[1742658446406,5.03169,1987.4,1987.2,31.25]
[1742658446628,0.2025746,1987.3,1987.2,31.25]
[1742658446939,5.03169,1987.4,1987.2,31.25]
[1742658447141,0.2025746,1987.3,1987.2,31.25]
[1742658447362,5.03169,1987.4,1987.2,31.25]
[1742658447569,0.2025746,1987.3,1987.2,31.25]
[1742658447935,5.03169,1987.4,1987.2,31.25]
[1742658448135,0.2025746,1987.3,1987.2,31.25]
[1742658448367,5.03169,1987.4,1987.2,31.25]
[1742658448667,0.2025746,1987.3,1987.2,31.25]
[1742658448966,5.03169,1987.4,1987.2,31.25]
[1742658449169,0.2025746,1987.3,1987.2,31.25]
[1742658449665,5.03169,1987.4,1987.2,31.25]
[1742658449838,0.2025746,1987.3,1987.2,31.25]
[1742658450251,5.03169,1987.4,1987.2,31.25]
[1742658450566,0.2025746,1987.3,1987.2,4.65]
[1742658450768,0.2025746,1987.3,1987.2,31.251]
[1742658450971,5.03169,1987.4,1987.2,31.251]
[1742658451263,0.2025746,1987.3,1987.2,31.251]
[1742658451569,5.03147,1987.5,1987.2,31.251]
[1742658451740,0.2025746,1987.3,1987.2,31.251]
[1742658451947,5.0317,1987.4,1987.2,31.251]
[1742658452170,0.2025746,1987.3,1987.2,31.251]
[1742658452464,0.2025746,1987.3,1987.2,31.751]
[1742658452656,5.03122,1987.6,1987.2,31.751]
[1742658452852,0.2025746,1987.3,1987.2,31.751]
[1742658453060,5.03146,1987.5,1987.2,31.751]
[1742658453537,0.20308272,1987.4,1987.2,31.751]
[1742658454171,0.20308272,1987.4,1987.2,37.741]
[1742658454372,0.20308272,1987.4,1987.2,42.7732]
[1742658455373,0.20308272,1987.4,1987.2,45.34365082]
[1742658456371,0.20308272,1987.4,1987.2,40.31145082]
[1742658457149,0.20308272,1987.4,1987.2,38.75206497]
[1742658457470,0.20308272,1987.4,1987.2,37.741]
[1742658461674,0.20308272,1987.4,1987.3,2.57045082]
[1742658461973,10.8476,1987.9,1987.3,3.12076446]
[1742658462177,5.23526869,1987.8,1987.5,2.57045082]
[1742658462353,5.23526869,1987.8,1987.6,4.649]
[1742658463075,10.26614869,1987.8,1987.6,4.649]
[1742658463854,10.26614869,1987.8,1987.7,26.6]
[1742658465176,5.23526869,1987.8,1987.7,26.6]
[1742658466871,0.20458869,1987.8,1987.7,26.6]
[1742658467243,10.84743,1987.9,1987.7,26.6]
[1742658467443,0.20493927,1987.8,1987.7,26.6]
[1742658467662,5.23561927,1987.8,1987.7,26.6]
[1742658467850,5.03068,1987.8,1987.7,26.6]
[1742658468159,5.23561927,1987.8,1987.7,26.6]
[1742658469182,0.20493927,1987.8,1987.7,26.6]
[1742658469393,5.8168,1987.9,1987.7,26.6]
[1742658469593,0.20493927,1987.8,1987.7,26.6]
[1742658469951,5.8168,1987.9,1987.7,26.6]
[1742658470257,0.20493927,1987.8,1987.7,26.6]
[1742658470971,5.0305,1987.9,1987.7,26.6]
[1742658471174,0.20493927,1987.8,1987.7,26.6]
[1742658471373,5.0305,1987.9,1987.7,26.6]
[1742658471589,0.20493927,1987.8,1987.7,26.6]
[1742658471988,5.0305,1987.9,1987.7,26.6]
[1742658472146,0.20493927,1987.8,1987.7,26.6]
[1742658472482,10.06114,1987.9,1987.7,26.6]
[1742658472690,0.20493927,1987.8,1987.7,26.6]
[1742658473062,10.06114,1987.9,1987.7,26.6]
[1742658473263,0.20493927,1987.8,1987.7,26.6]
[1742658473459,5.23561927,1987.8,1987.7,26.6]
[1742658477401,0.20493927,1987.8,1987.7,26.6]
[1742658477881,5.03048,1987.9,1987.7,26.6]
[1742658478086,0.20527637,1987.8,1987.7,26.6]
[1742658478457,5.03048,1987.9,1987.7,26.6]
[1742658478687,0.20527637,1987.8,1987.7,26.6]
[1742658479082,10.06109,1987.9,1987.7,26.6]
[1742658479292,0.20527637,1987.8,1987.7,26.6]
[1742658479988,5.03048,1987.9,1987.7,26.6]
[1742658480192,0.20545163,1987.8,1987.7,26.6]
[1742658480356,5.03048,1987.9,1987.7,26.6]
[1742658480690,0.20545163,1987.8,1987.7,26.6]
[1742658480987,5.03048,1987.9,1987.7,26.6]
[1742658481160,5.23613163,1987.8,1987.7,26.6]
[1742658485000,6.01423163,1987.8,1987.7,26.6]
[1742658498422,5.23613163,1987.8,1987.7,26.6]
[1742658500511,0.20545163,1987.8,1987.7,26.6]
[1742658500712,5.03052,1987.9,1987.7,26.6]
[1742658500914,5.03052,1987.9,1987.8,26.594]
[1742658504030,0.7961,1988.0,1987.8,26.594]
[1742658504195,8.03001,1988.1,1987.8,26.594]
[1742658504391,5.03026,1988.0,1987.8,26.594]
[1742658505114,5.03043,1987.9,1987.8,26.594]
[1742658513630,5.23653772,1987.9,1987.8,26.594]
[1742658521143,0.20610772,1987.9,1987.8,34.19513082]
[1742658521343,5.84907,1988.2,1987.8,34.19513082]
[1742658521550,0.20696156,1988.1,1987.9,2.57045082]
[1742658521726,5.02977,1988.2,1988.0,4.647]
[1742658521928,0.20696156,1988.1,1988.0,4.647]
[1742658522127,10.05963,1988.2,1988.0,5.36874508]
[1742658522328,0.20696156,1988.1,1988.0,5.36874508]
[1742658522637,5.02977,1988.2,1988.0,5.36874508]
[1742658522836,0.20696156,1988.1,1988.0,5.36874508]
[1742658523133,0.7928,1988.4,1988.0,8.4891959]
[1742658523442,0.2077343,1988.3,1988.1,3.41937041]
[1742658523849,5.02949,1988.3,1988.1,3.41937041]
[1742658524148,0.20734795,1988.2,1988.1,3.41937041]
[1742658527652,0.20734795,1988.2,1988.1,9.40937041]
[1742658530155,0.20734795,1988.2,1988.1,9.90937041]
[1742658531026,5.02917,1988.4,1988.1,9.90937041]
[1742658531253,0.208772,1988.3,1988.2,3.22281202]
[1742658531644,5.02917,1988.4,1988.2,3.22281202]
[1742658531845,0.208772,1988.3,1988.2,3.22281202]
[1742658532147,5.02917,1988.4,1988.2,3.22281202]
[1742658532353,0.208772,1988.3,1988.2,3.22281202]
[1742658532554,5.02917,1988.4,1988.2,3.22281202]
[1742658532733,5.02917,1988.4,1988.3,0.3222812]
[1742658533328,10.05856,1988.4,1988.2,0.6523612]
[1742658533726,5.02942,1988.3,1988.2,0.6523612]
[1742658538736,5.02924,1988.4,1988.2,3.22281202]
[1742658540030,5.02924,1988.4,1988.3,26.588]
[1742658541269,5.80474,1988.4,1988.3,26.588]
[1742658541470,8.37519082,1988.4,1988.3,26.588]
[1742658541673,5.80474,1988.4,1988.3,26.588]
[1742658543179,5.86760605,1988.4,1988.3,26.588]
[1742658543572,6.07684521,1988.4,1988.3,26.588]
[1742658543944,6.01397916,1988.4,1988.3,26.588]
[1742658544870,7.67531616,1988.4,1988.3,26.588]
[1742658546287,10.30863236,1988.4,1988.3,26.588]
[1742658546497,10.24576698,1988.4,1988.3,31.234]
[1742658547156,7.67531616,1988.4,1988.3,31.234]
[1742658547356,7.73818303,1988.4,1988.3,31.234]
[1742658548579,7.67531616,1988.4,1988.3,31.234]
[1742658548749,7.73818304,1988.4,1988.3,31.234]
[1742658549853,7.73818337,1988.4,1988.3,31.234]
[1742658550979,10.30863419,1988.4,1988.3,31.234]
[1742658551183,10.24576698,1988.4,1988.3,31.234]
[1742658551681,10.28366698,1988.4,1988.3,26.588]
[1742658552060,10.28366698,1988.4,1988.3,31.234]
[1742658552963,12.8541178,1988.4,1988.3,31.234]
[1742658553180,10.28366698,1988.4,1988.3,26.588]
[1742658553384,15.8541178,1988.4,1988.3,26.588]
[1742658553551,5.84434,1987.7,1987.6,32.578]
[1742658553878,5.84434,1987.7,1987.6,31.234]
[1742658554082,6.04908992,1987.7,1987.6,31.234]
[1742658554271,5.84434,1987.7,1987.6,31.234]
[1742658554471,6.04907644,1987.7,1987.6,31.234]
[1742658555867,5.23567644,1987.7,1987.6,31.234]
[1742658556555,0.20473644,1987.7,1987.6,34.30445082]
[1742658556778,5.03048,1987.9,1987.6,34.30445082]
[1742658556779,5.03076,1987.8,1987.6,34.30445082]
[1742658557085,0.20376601,1987.7,1987.6,34.30445082]
[1742658557679,5.23470601,1987.7,1987.6,31.234]
[1742658587799,8.67684464,1987.7,1987.6,26.588]
[1742658587992,12.96043632,1987.7,1987.6,26.588]
[1742658588192,12.89754851,1987.7,1987.6,31.235]
[1742658589986,12.89754851,1987.7,1987.6,26.588]
[1742658596920,5.03144,1987.5,1987.4,4.647]
[1742658597120,7.60189082,1987.5,1987.4,4.647]
[1742658597300,7.80402046,1987.5,1987.4,4.647]
[1742658597721,7.86691796,1987.5,1987.4,4.647]
[1742658599023,7.80402046,1987.5,1987.4,4.647]
[1742658600009,5.23356964,1987.5,1987.4,4.647]
[1742658602301,5.29646507,1987.5,1987.4,4.647]
[1742658602512,9.45673548,1987.5,1987.4,4.647]
[1742658602702,9.45673548,1987.5,1987.2,27.101]
[1742658602703,5.03195,1987.3,1987.2,26.601]
[1742658602902,5.03195,1987.3,1987.2,31.249]
[1742658603117,5.23330614,1987.3,1987.2,31.249]
[1742658603294,5.23330614,1987.3,1987.2,31.749]
[1742658607225,0.20135614,1987.3,1987.2,34.31945082]
[1742658607525,5.03179,1987.4,1987.2,34.31945082]
[1742658607724,0.20143706,1987.3,1987.2,34.31945082]
[1742658608023,5.03174,1987.4,1987.2,34.31945082]
[1742658608230,0.20147752,1987.3,1987.2,34.31945082]
[1742658608524,5.03174,1987.4,1987.2,34.31945082]
[1742658608732,0.20147752,1987.3,1987.2,34.31945082]
[1742658609431,5.03174,1987.4,1987.2,34.31945082]
[1742658609732,0.20147752,1987.3,1987.2,34.31945082]
[1742658610132,5.03174,1987.4,1987.2,34.31945082]
[1742658610343,0.20147752,1987.3,1987.2,34.31945082]
[1742658610710,5.03174,1987.4,1987.2,34.31945082]
[1742658610922,0.20147752,1987.3,1987.2,34.31945082]
[1742658611123,0.20147752,1987.3,1987.2,34.86945082]
[1742658611314,5.03151,1987.5,1987.2,34.86945082]
[1742658611626,5.03151,1987.5,1987.3,2.57045082]
[1742658611828,5.03099,1987.7,1987.4,8.10205082]
[1742658612030,5.03099,1987.7,1987.5,2.57045082]
[1742658612200,5.03069,1987.8,1987.6,7.9744959]
[1742658612839,5.03045,1987.9,1987.7,2.57045082]
[1742658613138,5.03021,1988.0,1987.8,3.07045082]
[1742658613321,5.03021,1988.0,1987.8,3.1207526]
[1742658613511,5.03021,1988.0,1987.9,0.31207526]
[1742658614136,5.03021,1988.0,1987.8,0.5]
[1742658615327,5.03043,1987.9,1987.8,0.5]
[1742658616922,10.06107,1987.9,1987.7,5.99]
[1742658617238,5.03043,1987.9,1987.7,5.99]
[1742658618813,0.20505764,1987.8,1987.7,5.99]
[1742658619015,0.20505764,1987.8,1987.7,7.38644959]
[1742658619208,5.03068,1987.8,1987.7,7.38644959]
[1742658619408,8.38943082,1987.8,1987.7,5.99]
[1742658619617,8.59457978,1987.8,1987.7,10.636]
[1742658619919,8.65746732,1987.8,1987.7,10.636]
[1742658620239,10.02625705,1987.8,1987.7,10.636]
[1742658621435,10.02625705,1987.8,1987.7,4.646]
[1742658621642,5.03191,1987.4,1987.2,32.591]
[1742658621840,5.03195,1987.3,1987.2,32.591]
[1742658622144,5.23502036,1987.3,1987.2,37.237]
[1742658624972,0.20307036,1987.3,1987.2,37.237]
[1742658625115,5.23502036,1987.3,1987.2,37.237]
[1742658625320,5.03195,1987.3,1987.2,37.237]
[1742658625550,5.23457547,1987.3,1987.2,37.237]
[1742658626341,0.20262547,1987.3,1987.2,37.237]
[1742658626760,10.06364,1987.4,1987.2,37.237]
[1742658626761,5.03175,1987.4,1987.2,37.237]
[1742658627051,0.20262547,1987.3,1987.2,37.737]
[1742658627356,5.03146,1987.5,1987.2,37.737]
[1742658627655,0.20254456,1987.3,1987.2,37.737]
[1742658628369,5.03146,1987.5,1987.2,37.737]
[1742658628548,0.20250411,1987.3,1987.2,37.737]
[1742658628752,5.03146,1987.5,1987.2,37.737]
[1742658628957,0.20250411,1987.3,1987.2,37.737]
[1742658629344,10.0631,1987.5,1987.2,37.737]
[1742658629345,10.06308,1987.5,1987.2,37.737]
[1742658629658,0.20250411,1987.3,1987.2,37.737]
[1742658629857,5.03146,1987.5,1987.2,37.737]
[1742658630062,0.20250411,1987.3,1987.2,37.737]
[1742658630256,5.03146,1987.5,1987.2,37.737]
[1742658630435,10.06311,1987.5,1987.2,37.737]
[1742658630626,5.03171,1987.4,1987.2,37.737]
[1742658630830,5.23460086,1987.4,1987.2,37.737]
[1742658631030,10.26649086,1987.4,1987.2,37.237]
[1742658631233,5.03195,1987.3,1987.2,37.237]
[1742658631681,5.39260755,1987.3,1987.2,37.237]
[1742658632345,0.36065755,1987.3,1987.2,37.237]
[1742658632743,10.06362,1987.4,1987.2,37.237]
[1742658633067,0.36065755,1987.3,1987.2,37.237]
[1742658633838,10.06362,1987.4,1987.2,37.237]
[1742658634338,0.36065755,1987.3,1987.2,37.237]
[1742658635039,10.06362,1987.4,1987.2,37.237]
[1742658635237,0.36065755,1987.3,1987.2,37.237]
[1742658635969,10.06362,1987.4,1987.2,37.237]
[1742658636170,0.36065755,1987.3,1987.2,37.237]
[1742658636553,10.06362,1987.4,1987.2,37.237]
[1742658636755,0.36065755,1987.3,1987.2,37.237]
[1742658637434,5.03171,1987.4,1987.2,37.237]
[1742658637837,0.36065755,1987.3,1987.2,37.237]
[1742658638237,5.03171,1987.4,1987.2,37.237]
[1742658638470,0.34859922,1987.3,1987.2,37.237]
[1742658639170,5.03171,1987.4,1987.2,37.237]
[1742658639373,0.34859922,1987.3,1987.2,37.237]
[1742658639742,5.03122,1987.6,1987.2,37.237]
[1742658639743,5.03151,1987.5,1987.2,37.237]
[1742658639980,0.31786371,1987.3,1987.2,37.237]
[1742658640276,5.03151,1987.5,1987.2,37.237]
[1742658640467,0.31786371,1987.3,1987.2,37.237]
[1742658640668,5.03151,1987.5,1987.2,37.237]
[1742658640873,0.31786371,1987.3,1987.2,45.54222587]
[1742658641101,5.03097,1987.7,1987.3,0.55]
[1742658641245,5.03102,1987.7,1987.4,9.81683009]
[1742658642883,5.03084,1987.8,1987.4,4.78524009]
[1742658643042,5.03043,1987.9,1987.6,4.28524009]
[1742658643243,5.03043,1987.9,1987.7,5.147]
[1742658643898,5.0304,1988.0,1987.7,9.43224009]
[1742658644851,5.0304,1988.0,1987.8,26.597]
[1742658645277,5.03037,1988.0,1987.8,26.597]
[1742658645446,5.03043,1987.9,1987.8,26.597]
[1742658648289,5.03037,1988.0,1987.8,26.597]
[1742658648667,0.32018972,1987.9,1987.8,26.597]
[1742658651490,5.35061972,1987.9,1987.8,26.597]
[1742658653564,0.32018972,1987.9,1987.8,26.597]
[1742658654128,0.32018972,1987.9,1987.8,30.88224009]
[1742658654480,0.32018972,1987.9,1987.8,26.597]
[1742658654712,5.03001,1988.1,1987.8,26.597]
[1742658654907,0.32018972,1987.9,1987.8,26.597]
[1742658655505,5.03001,1988.1,1987.8,26.597]
[1742658655884,5.03001,1988.1,1987.9,0.05029928]
[1742658656127,0.32056826,1988.0,1987.9,0.05029928]
[1742658656280,0.32056826,1988.0,1987.8,26.597]
[1742658656750,0.32056826,1988.0,1987.8,32.00928853]
[1742658657026,5.02996,1988.1,1987.9,0.0502993]
[1742658658229,5.02996,1988.1,1987.8,32.00932853]
[1742658658921,5.02996,1988.1,1987.8,26.97864853]
[1742658659629,5.02968,1988.2,1987.9,5.99]
[1742658660428,5.02968,1988.2,1988.0,26.592]
[1742658660606,5.02968,1988.2,1988.1,4.645]
[1742658663617,5.3515984,1988.2,1988.1,4.645]
[1742658666044,0.3219184,1988.2,1988.1,4.645]
[1742658666552,5.02917,1988.4,1988.1,4.645]
[1742658666754,0.32199923,1988.2,1988.1,4.645]
[1742658666927,5.78812,1988.5,1988.1,7.76413853]
[1742658667132,5.02892,1988.5,1988.1,17.82371853]
[1742658667333,0.32275605,1988.4,1988.2,2.56884485]
[1742658667532,0.32275605,1988.4,1988.3,0.25688449]
[1742658667924,0.32275605,1988.4,1988.2,0.55]
[1742658668760,5.35194605,1988.4,1988.2,0.55]
[1742658670833,10.38129605,1988.4,1988.2,0.55]
[1742658671041,5.35194605,1988.4,1988.2,0.55]
[1742658671351,5.35194605,1988.4,1988.2,6.54]
[1742658671553,5.35194605,1988.4,1988.3,0.654]
[1742658674854,5.35194605,1988.4,1988.3,27.242]
[1742658676487,0.32275605,1988.4,1988.3,27.242]
[1742658677165,5.35191605,1988.4,1988.3,27.242]
[1742658681100,5.35191605,1988.4,1988.3,26.588]
[1742658684502,6.13081605,1988.4,1988.3,26.588]
[1742658685497,6.19368193,1988.4,1988.3,31.232]
[1742658685701,6.13081605,1988.4,1988.3,31.232]
[1742658686297,6.19368472,1988.4,1988.3,31.232]
[1742658686462,6.13081605,1988.4,1988.3,31.232]
[1742658688004,6.19368473,1988.4,1988.3,31.232]
[1742658689170,6.13081605,1988.4,1988.3,31.232]
[1742658695116,6.19368473,1988.4,1988.3,31.232]
[1742658695415,8.76229054,1988.4,1988.3,31.232]
[1742658695613,7.57281178,1988.4,1988.3,31.232]
[1742658695914,10.14141759,1988.4,1988.3,26.588]
[1742658696109,10.14141759,1988.4,1988.3,31.232]
[1742658699951,13.14141759,1988.4,1988.3,26.588]
[1742658700106,5.03054,1987.9,1987.7,26.589]
[1742658700416,7.98045073,1987.8,1987.7,31.234]
[1742658700615,5.41184492,1987.8,1987.7,31.234]
[1742658700821,7.98045073,1987.8,1987.7,31.234]
[1742658701017,5.34895994,1987.8,1987.7,31.234]
[1742658702319,5.41184836,1987.8,1987.7,31.234]
[1742658702522,5.34895994,1987.8,1987.7,31.234]
[1742658704123,0.31827994,1987.8,1987.7,31.234]
[1742658704620,0.32029284,1987.8,1987.7,31.234]
[1742658704823,5.03054,1987.9,1987.7,31.234]
[1742658705007,0.32029284,1987.8,1987.7,31.234]
[1742658705320,5.03032,1988.0,1987.7,31.234]
[1742658705520,0.31917414,1987.8,1987.7,31.234]
[1742658705694,5.03032,1988.0,1987.7,31.234]
[1742658706225,0.31964236,1987.9,1987.7,31.234]
[1742658706919,5.35008236,1987.9,1987.7,31.234]
[1742658707923,0.31964236,1987.9,1987.7,31.234]
[1742658715433,5.35007236,1987.9,1987.7,37.224]
[1742658718333,5.03068,1987.8,1987.7,37.224]
[1742658718505,5.35007236,1987.9,1987.7,37.224]
[1742658718698,0.32032602,1987.8,1987.7,37.224]
[1742658719431,5.03043,1987.9,1987.7,37.224]
[1742658719599,0.32032602,1987.8,1987.7,37.224]
[1742658719936,5.03043,1987.9,1987.7,37.224]
[1742658720103,0.32032602,1987.8,1987.7,37.224]
[1742658720524,5.03019,1988.0,1987.7,37.224]
[1742658720721,0.32032602,1987.8,1987.7,43.30494]
[1742658720894,5.02974,1988.2,1987.9,5.53043]
[1742658721102,5.02974,1988.2,1987.9,8.09910033]
[1742658721301,0.29507308,1988.1,1988.0,0.80991003]
[1742658721621,10.05909,1988.3,1988.0,0.80991003]
[1742658721822,5.02967,1988.2,1988.1,4.645]
[1742658722002,10.05909,1988.3,1988.1,4.645]
[1742658722203,5.02948,1988.3,1988.1,5.190491]
[1742658723306,5.02923,1988.4,1988.1,5.190491]
[1742658723512,5.02923,1988.4,1988.2,26.592]